[Event "European Womens-ch 2025"]
[Site "Rhodes"]
[Date "2025.04.07"]
[Round "7.37"]
[White "Deak-Sala, Emilia"]
[Black "Allahverdiyeva, Ayan"]
[Result "0-1"]
[Annotator "RC"]
[ECO "B90"]
[WhiteElo "2112"]
[BlackElo "2266"]
[PlyCount "67"]
[EventDate "2025.03.29"]
[EventType "swiss"]
[EventCountry "GRE"]
[SourceTitle "playchess.com"]
[Source "ChessBase"]
[SourceQuality "1"]
[TimeControl "40/5400+30:1800+30"]

1. e4 {[%emt 0:01:24]} c5 {[%emt 0:00:05]} 2. Nf3 {[%emt 0:00:07]} d6 {[%emt 0:00:04]} 3. d4 {[%emt 0:00:02]} cxd4 {[%emt 0:00:05]} 4. Nxd4 {[%emt 0:00:02]} Nf6 {[%emt 0:00:05]} 5. Nc3 {[%emt 0:00:02]} a6 {[%emt 0:00:03]} 6. Bd3 {[%emt 0:00:03]} g6 {[%emt 0:02:49]} 7. Nb3 {[%emt 0:03:17]} Bg7 {[%emt 0:01:49]} 8. f3 {[%emt 0:05:14]} Be6 {[%emt 0:05:38]} 9. Be3 {[%emt 0:02:38]} Nc6 {[%emt 0:04:12]} 10. Qd2 {[%emt 0:01:07]} h5 {[%emt 0:00:32]} 11. O-O-O {[%emt 0:07:26]} Nb4 {[%emt 0:03:14]} 12. Kb1 {[%emt 0:08:45]} Nxd3 {[%emt 0:03:19]} 13. Qxd3 {[%emt 0:00:09]} Rc8 {[%emt 0:01:12]} 14. Bd4 {[%emt 0:12:49]} O-O {[%emt 0:01:32]} 15. Qd2 {[%emt 0:02:55]} a5 {[%emt 0:11:30]} 16. Nd5 {[%emt 0:08:08]} a4 {[%emt 0:03:17]} 17. Nc1 {[%emt 0:02:04]} Nxd5 {[%emt 0:02:58]} 18. Bxg7 {[%emt 0:43:18]} Kxg7 {[%emt 0:00:16]} 19. exd5 {[%emt 0:00:00]} Bf5 {[%emt 0:00:12]} 20. Qd4+ {[%emt 0:00:00]} Kg8 {[%emt 0:00:31]} 21. Nd3 {[%emt 0:00:00]} b5 {[%emt 0:01:06]} 22. g4 {[%emt 0:00:00]} hxg4 {[%emt 0:01:26]} 23. fxg4 {[%emt 0:00:00]} Rc4 {[%emt 0:00:36]} 24. Qf2 {[%emt 0:00:00]} Bxg4 {[%emt 0:02:22]} 25. Rdg1 {[%emt 0:00:00]} Qd7 {[%emt 0:02:28]} 26. b3 {[%emt 0:00:00]} axb3 {[%emt 0:07:56]} 27. axb3 {[%emt 0:00:00]} Re4 {[%emt 0:00:15]} 28. Rg3 {[%emt 0:00:00]} Re2 {[%emt 0:06:01]} 29. Qf4 {[%emt 0:00:00]} Qa7 {[%emt 0:04:25]} 30. Qc1 {[%emt 0:00:00]} Bf5 {[%emt 0:01:52]} 31. Rf1 {[%emt 0:00:00]} Be4 {[%emt 0:02:32]} 32. Rh3 {[%emt 0:00:00]} Qd4 {[%emt 0:00:50]} 33. Re1 {[%emt 0:00:00]} Ra8 {[%emt 0:00:49]} 34. Qb2 {[%emt 0:00:00]} 0-1

[Event "European Womens-ch 2025"]
[Site "Rhodes"]
[Date "2025.04.07"]
[Round "7.38"]
[White "Wikar, Martyna"]
[Black "Vidic, Teja"]
[Result "1-0"]
[Annotator "RC"]
[ECO "C48"]
[WhiteElo "2239"]
[BlackElo "2100"]
[PlyCount "81"]
[EventDate "2025.03.29"]
[EventType "swiss"]
[EventCountry "GRE"]
[SourceTitle "playchess.com"]
[Source "ChessBase"]
[SourceQuality "1"]
[TimeControl "40/5400+30:1800+30"]

1. e4 {[%emt 0:00:04]} e5 {[%emt 0:00:07]} 2. Nf3 {[%emt 0:00:14]} Nc6 {[%emt 0:00:05]} 3. Nc3 {[%emt 0:00:10]} Nf6 {[%emt 0:00:06]} 4. Bb5 {[%emt 0:00:23]} Nd4 {[%emt 0:00:17]} 5. O-O {[%emt 0:00:20]} Nxb5 {[%emt 0:01:18]} 6. Nxb5 {[%emt 0:00:44]} c6 {[%emt 0:00:05]} 7. Nc3 {[%emt 0:00:06]} d6 {[%emt 0:00:24]} 8. d4 {[%emt 0:00:20]} Qc7 {[%emt 0:04:25]} 9. Bg5 {[%emt 0:00:08]} Be7 {[%emt 0:00:33]} 10. h3 {[%emt 0:11:19]} h6 {[%emt 0:03:27]} 11. Bxf6 {[%emt 0:00:05]} Bxf6 {[%emt 0:00:11]} 12. d5 {[%emt 0:00:03]} O-O {[%emt 0:06:19]} 13. a4 {[%emt 0:00:04]} a5 {[%emt 0:01:17]} 14. Qd3 {[%emt 0:00:44]} Bd7 {[%emt 0:10:01]} 15. Rfd1 {[%emt 0:03:04]} Rfd8 {[%emt 0:03:32]} 16. Nd2 {[%emt 0:02:09]} Rac8 {[%emt 0:01:37]} 17. Nf1 {[%emt 0:12:20]} Be7 {[%emt 0:06:43]} 18. Ne3 {[%emt 0:00:55]} Bf8 {[%emt 0:00:11]} 19. Rd2 {[%emt 1:06:48]} h5 20. Rad1 {[%emt 0:00:00]} g6 {[%emt 0:07:16]} 21. Qe2 {[%emt 0:00:00]} Qb6 {[%emt 0:14:16]} 22. Nc4 {[%emt 0:01:30]} Qc5 {[%emt 0:01:35]} 23. dxc6 {[%emt 0:00:00]} Bxc6 {[%emt 0:13:36]} 24. b3 {[%emt 0:00:00]} Kg7 {[%emt 0:01:29]} 25. Rd3 {[%emt 0:00:00]} Be7 {[%emt 0:06:57]} 26. Qd2 {[%emt 0:00:00]} Rd7 {[%emt 0:00:16]} 27. Nd5 {[%emt 0:00:00]} Bd8 {[%emt 0:00:14]} 28. Nce3 {[%emt 0:00:00]} Qa7 {[%emt 0:06:09]} 29. Nf5+ {[%emt 0:00:00]} gxf5 {[%emt 0:01:37]} 30. Rg3+ {[%emt 0:00:00]} Kh7 {[%emt 0:00:04]} 31. Qe2 {[%emt 0:00:00]} Kh6 {[%emt 0:01:07]} 32. Rg8 {[%emt 0:00:00]} f6 {[%emt 0:07:21]} 33. exf5 {[%emt 0:00:00]} Rg7 {[%emt 0:00:03]} 34. Rh8+ {[%emt 0:01:54]} Rh7 {[%emt 0:00:05]} 35. Rxh7+ {[%emt 0:01:33]} Kxh7 {[%emt 0:00:04]} 36. Qxh5+ {[%emt 0:00:05]} Kg7 {[%emt 0:00:07]} 37. Qg6+ {[%emt 0:01:28]} Kf8 {[%emt 0:00:08]} 38. Nxf6 {[%emt 0:00:28]} Bc7 {[%emt 0:05:28]} 39. Qg8+ {[%emt 0:00:28]} Ke7 {[%emt 0:00:04]} 40. Qg7+ {[%emt 0:00:00]} Kd8 {[%emt 0:00:00]} 41. Qf8+ {[%emt 0:00:16]} 1-0

[Event "European Womens-ch 2025"]
[Site "Rhodes"]
[Date "2025.04.07"]
[Round "7.39"]
[White "Hapala, Elisabeth"]
[Black "Lehaci, Miruna-Daria"]
[Result "1/2-1/2"]
[Annotator "RC"]
[ECO "C08"]
[WhiteElo "2092"]
[BlackElo "2212"]
[PlyCount "49"]
[EventDate "2025.03.29"]
[EventType "swiss"]
[EventCountry "GRE"]
[SourceTitle "playchess.com"]
[Source "ChessBase"]
[SourceQuality "1"]
[TimeControl "40/5400+30:1800+30"]

1. e4 {[%emt 0:00:01]} e6 {[%emt 0:00:04]} 2. d4 {[%emt 0:00:04]} d5 {[%emt 0:00:04]} 3. Nd2 {[%emt 0:00:04]} c5 {[%emt 0:00:03]} 4. exd5 {[%emt 0:00:05]} exd5 {[%emt 0:00:04]} 5. Ngf3 {[%emt 0:00:11]} Nc6 {[%emt 0:00:05]} 6. Bb5 {[%emt 0:00:15]} cxd4 {[%emt 0:00:08]} 7. Qe2+ {[%emt 0:00:46]} Qe7 {[%emt 0:00:40]} 8. Ne5 {[%emt 0:00:43]} Bd7 {[%emt 0:00:37]} 9. Bxc6 {[%emt 0:00:09]} bxc6 {[%emt 0:00:06]} 10. O-O {[%emt 0:00:17]} Kd8 {[%emt 0:01:25]} 11. Re1 {[%emt 0:00:20]} f6 {[%emt 0:03:41]} 12. Ndf3 {[%emt 0:00:12]} fxe5 {[%emt 0:02:56]} 13. Nxe5 {[%emt 0:00:05]} Kc7 {[%emt 0:11:15]} 14. Qa6 {[%emt 0:00:56]} Qb4 {[%emt 0:07:18]} 15. Bf4 {[%emt 0:00:38]} Bd6 {[%emt 0:02:23]} 16. Nd3 {[%emt 0:00:34]} Qb6 {[%emt 0:04:34]} 17. Bxd6+ {[%emt 0:00:59]} Kxd6 {[%emt 0:01:40]} 18. Qa3+ {[%emt 0:00:13]} Kc7 {[%emt 0:03:08]} 19. Ne5 {[%emt 0:00:58]} Nf6 {[%emt 0:02:52]} 20. Qg3 {[%emt 0:00:55]} Kc8 {[%emt 0:09:50]} 21. Nf7 {[%emt 0:23:41]} Rg8 {[%emt 0:07:37]} 22. Nd6+ {[%emt 0:06:33]} Kd8 {[%emt 0:01:14]} 23. Nf7+ {[%emt 0:33:06]} Kc8 {[%emt 0:00:05]} 24. Nd6+ {[%emt 0:13:35]} Kd8 {[%emt 0:00:04]} 25. Nf7+ {[%emt 0:17:40]} 1/2-1/2

[Event "European Womens-ch 2025"]
[Site "Rhodes"]
[Date "2025.04.07"]
[Round "7.40"]
[White "Lach, Aleksandra"]
[Black "Donghvani, Nia"]
[Result "1/2-1/2"]
[Annotator "RC"]
[ECO "B23"]
[WhiteElo "2208"]
[BlackElo "2025"]
[PlyCount "98"]
[EventDate "2025.03.29"]
[EventType "swiss"]
[EventCountry "GRE"]
[SourceTitle "playchess.com"]
[Source "ChessBase"]
[SourceQuality "1"]
[TimeControl "40/5400+30:1800+30"]

1. e4 {[%emt 0:00:10]} c5 {[%emt 0:00:05]} 2. Nc3 {[%emt 0:00:25]} Nc6 {[%emt 0:00:24]} 3. f4 {[%emt 0:01:02]} g6 {[%emt 0:06:42]} 4. Nf3 {[%emt 0:01:25]} Bg7 {[%emt 0:01:49]} 5. a4 {[%emt 0:00:43]} d6 {[%emt 0:00:43]} 6. Bb5 {[%emt 0:01:24]} Bd7 {[%emt 0:07:08]} 7. d3 {[%emt 0:04:25]} a6 {[%emt 0:04:25]} 8. Bxc6 {[%emt 0:02:33]} Bxc6 {[%emt 0:00:23]} 9. a5 {[%emt 1:22:53]} b5 {[%emt 0:04:39]} 10. axb6 {[%emt 0:00:00]} Qxb6 11. O-O {[%emt 0:00:00]} Nf6 {[%emt 0:12:42]} 12. Qe1 O-O {[%emt 0:00:00]} 13. Kh1 {[%emt 0:00:00]} e6 {[%emt 0:58:00]} 14. b3 {[%emt 0:00:00]} Qb7 {[%emt 0:00:00]} 15. Bd2 {[%emt 0:00:00]} Nd7 {[%emt 0:00:00]} 16. Ra5 {[%emt 0:00:00]} f6 {[%emt 0:00:00]} 17. Na4 {[%emt 0:00:00]} Qc7 {[%emt 0:00:00]} 18. Bc3 {[%emt 0:00:00]} Bb7 {[%emt 0:00:00]} 19. Qf2 {[%emt 0:00:00]} Rac8 {[%emt 0:00:00]} 20. f5 {[%emt 0:00:00]} exf5 {[%emt 0:00:00]} 21. exf5 {[%emt 0:00:00]} g5 {[%emt 0:00:00]} 22. Nd2 {[%emt 0:00:46]} Ne5 {[%emt 0:00:00]} 23. Bxe5 {[%emt 0:03:01]} fxe5 {[%emt 0:00:00]} 24. Nc4 {[%emt 0:00:02]} Rf6 {[%emt 0:00:00]} 25. Qd2 {[%emt 0:00:36]} Rcf8 {[%emt 0:00:00]} 26. Ne3 {[%emt 0:00:33]} h5 {[%emt 0:00:00]} 27. Nb2 {[%emt 0:01:15]} g4 {[%emt 0:00:00]} 28. Nbd1 {[%emt 0:00:53]} d5 {[%emt 0:00:00]} 29. Ra1 {[%emt 0:00:58]} d4 {[%emt 0:00:00]} 30. Nc4 {[%emt 0:00:01]} Rxf5 {[%emt 0:00:00]} 31. Rxf5 {[%emt 0:00:12]} Rxf5 {[%emt 0:00:00]} 32. Nf2 {[%emt 0:00:19]} Rf4 {[%emt 0:04:37]} 33. Re1 {[%emt 0:01:00]} h4 {[%emt 0:00:30]} 34. Ne4 {[%emt 0:00:52]} Bxe4 {[%emt 0:02:26]} 35. dxe4 {[%emt 0:00:06]} g3 {[%emt 0:00:47]} 36. Qd3 {[%emt 0:01:20]} gxh2 {[%emt 0:00:38]} 37. Kxh2 {[%emt 0:00:23]} Qc6 {[%emt 0:01:22]} 38. Qh3 {[%emt 0:01:06]} Qg6 {[%emt 0:00:31]} 39. Nd2 {[%emt 0:00:40]} Rf2 {[%emt 0:01:18]} 40. Nf3 {[%emt 0:00:00]} Qg3+ {[%emt 0:00:00]} 41. Qxg3 {[%emt 0:09:06]} hxg3+ {[%emt 0:00:20]} 42. Kxg3 {[%emt 0:00:07]} Rxc2 {[%emt 0:00:05]} 43. Ra1 {[%emt 0:00:06]} Rb2 {[%emt 0:09:19]} 44. Rxa6 {[%emt 0:03:40]} Rxb3 {[%emt 0:00:04]} 45. Rc6 {[%emt 0:00:17]} Rc3 {[%emt 0:01:32]} 46. Kg4 {[%emt 0:02:57]} Rc2 {[%emt 0:01:00]} 47. Kf5 {[%emt 0:01:43]} Rxg2 {[%emt 0:01:02]} 48. Rxc5 {[%emt 0:01:43]} Rf2 {[%emt 0:01:54]} 49. Kg4 {[%emt 0:00:37]} Rg2+ {[%emt 0:02:00]} 1/2-1/2

[Event "European Womens-ch 2025"]
[Site "Rhodes"]
[Date "2025.04.07"]
[Round "7.41"]
[White "Abdinova, Narmin"]
[Black "Nenova, Andzhelika"]
[Result "1-0"]
[Annotator "RC"]
[ECO "A62"]
[WhiteElo "2165"]
[BlackElo "1903"]
[PlyCount "91"]
[EventDate "2025.03.29"]
[EventType "swiss"]
[EventCountry "GRE"]
[SourceTitle "playchess.com"]
[Source "ChessBase"]
[SourceQuality "1"]
[TimeControl "40/5400+30:1800+30"]

1. d4 {[%emt 0:00:42]} Nf6 {[%emt 0:00:21]} 2. c4 {[%emt 0:00:16]} e6 {[%emt 0:00:07]} 3. g3 {[%emt 0:00:05]} c5 {[%emt 0:00:07]} 4. d5 {[%emt 0:00:08]} exd5 {[%emt 0:00:05]} 5. cxd5 {[%emt 0:00:05]} d6 {[%emt 0:00:04]} 6. Nc3 {[%emt 0:00:05]} g6 {[%emt 0:00:06]} 7. Bg2 {[%emt 0:00:04]} Bg7 {[%emt 0:00:04]} 8. Nf3 {[%emt 0:00:04]} O-O {[%emt 0:00:15]} 9. O-O {[%emt 0:00:18]} Re8 {[%emt 0:00:10]} 10. Bf4 {[%emt 0:11:49]} h6 {[%emt 0:00:13]} 11. Qc1 {[%emt 0:00:23]} g5 {[%emt 0:00:15]} 12. Bd2 {[%emt 0:00:13]} Bf5 {[%emt 0:00:18]} 13. h4 {[%emt 0:00:15]} g4 {[%emt 0:00:18]} 14. Nh2 {[%emt 0:00:08]} h5 {[%emt 0:00:37]} 15. Bg5 {[%emt 0:02:19]} Nbd7 {[%emt 0:01:38]} 16. Re1 {[%emt 0:03:17]} Qb6 {[%emt 0:07:15]} 17. a4 {[%emt 0:06:54]} a6 {[%emt 0:10:21]} 18. Nf1 {[%emt 0:02:14]} Bg6 {[%emt 0:13:36]} 19. Nd2 {[%emt 0:23:54]} Ne5 {[%emt 0:03:43]} 20. Ra3 {[%emt 0:07:46]} c4 {[%emt 0:10:14]} 21. Be3 {[%emt 0:05:15]} Qc7 {[%emt 0:02:44]} 22. a5 {[%emt 0:01:35]} Rab8 {[%emt 0:17:57]} 23. Bd4 {[%emt 0:11:20]} Nfd7 {[%emt 0:01:17]} 24. Qa1 {[%emt 0:01:05]} f5 {[%emt 0:10:48]} 25. Be3 {[%emt 0:01:38]} Nc5 {[%emt 0:01:15]} 26. Rc1 {[%emt 0:00:56]} Rbc8 {[%emt 0:07:55]} 27. Na4 {[%emt 0:05:24]} Nxa4 {[%emt 0:07:53]} 28. Rxa4 {[%emt 0:00:05]} Qd7 {[%emt 0:02:59]} 29. Qa3 {[%emt 0:03:09]} Rf8 {[%emt 0:01:31]} 30. Nxc4 {[%emt 0:01:11]} Nxc4 {[%emt 0:00:51]} 31. Raxc4 {[%emt 0:00:08]} Rxc4 {[%emt 0:00:12]} 32. Rxc4 {[%emt 0:00:07]} Qb5 {[%emt 0:00:47]} 33. Rb4 {[%emt 0:03:48]} Qxe2 {[%emt 0:00:16]} 34. Rxb7 {[%emt 0:00:08]} f4 {[%emt 0:00:28]} 35. gxf4 {[%emt 0:01:09]} g3 {[%emt 0:00:40]} 36. fxg3 {[%emt 0:05:34]} Re8 {[%emt 0:00:09]} 37. Bf2 {[%emt 0:01:00]} Qd1+ {[%emt 0:00:03]} 38. Kh2 {[%emt 0:02:06]} Re2 {[%emt 0:00:34]} 39. Rb8+ {[%emt 0:01:03]} Kh7 {[%emt 0:00:42]} 40. f5 {[%emt 0:00:00]} Bxf5 {[%emt 0:00:00]} 41. Qf3 {[%emt 0:02:24]} Bg6 {[%emt 0:22:42]} 42. Rb7 {[%emt 0:00:33]} Qd2 {[%emt 0:03:38]} 43. Qf6 {[%emt 0:02:04]} Qh6 {[%emt 0:03:25]} 44. Bd4 {[%emt 0:00:35]} Rxg2+ {[%emt 0:01:18]} 45. Kxg2 {[%emt 0:00:08]} Be4+ {[%emt 0:01:17]} 46. Kg1 {[%emt 0:00:32]} 1-0

[Event "European Womens-ch 2025"]
[Site "Rhodes"]
[Date "2025.04.07"]
[Round "7.42"]
[White "Krkyasharyan, Sona"]
[Black "Khurtsilava, Inga"]
[Result "0-1"]
[Annotator "RC"]
[ECO "A58"]
[WhiteElo "1989"]
[BlackElo "2214"]
[PlyCount "134"]
[EventDate "2025.03.29"]
[EventType "swiss"]
[EventCountry "GRE"]
[SourceTitle "playchess.com"]
[Source "ChessBase"]
[SourceQuality "1"]
[TimeControl "40/5400+30:1800+30"]

1. d4 {[%emt 0:00:03]} Nf6 {[%emt 0:00:07]} 2. c4 {[%emt 0:00:04]} c5 {[%emt 0:00:04]} 3. d5 {[%emt 0:00:05]} b5 {[%emt 0:00:03]} 4. cxb5 {[%emt 0:00:04]} a6 {[%emt 0:00:04]} 5. bxa6 {[%emt 0:00:06]} g6 {[%emt 0:00:37]} 6. Nc3 {[%emt 0:00:06]} Bg7 {[%emt 0:00:06]} 7. a7 {[%emt 0:00:21]} Rxa7 {[%emt 0:00:13]} 8. e4 {[%emt 0:00:05]} O-O {[%emt 0:00:13]} 9. Nf3 {[%emt 0:00:12]} e6 {[%emt 0:00:43]} 10. Be2 {[%emt 0:01:00]} exd5 {[%emt 0:00:06]} 11. exd5 {[%emt 0:00:05]} Ba6 {[%emt 0:03:37]} 12. O-O {[%emt 0:05:09]} d6 {[%emt 0:03:31]} 13. Re1 {[%emt 0:06:38]} Nbd7 {[%emt 0:04:02]} 14. Bf4 {[%emt 0:11:05]} Nb6 {[%emt 0:01:29]} 15. Qd2 {[%emt 0:00:09]} Bc4 {[%emt 0:12:42]} 16. Bxc4 {[%emt 0:06:32]} Nxc4 {[%emt 0:00:08]} 17. Qc2 {[%emt 0:02:20]} Rb7 {[%emt 0:07:41]} 18. b3 {[%emt 0:09:41]} Na3 {[%emt 0:05:18]} 19. Qd2 {[%emt 0:00:19]} Nh5 {[%emt 0:15:54]} 20. Bh6 {[%emt 0:05:54]} Nc2 {[%emt 0:05:25]} 21. Bg5 {[%emt 0:06:17]} Qa5 {[%emt 0:05:32]} 22. Qxc2 {[%emt 0:00:10]} Qxc3 {[%emt 0:00:13]} 23. Rac1 {[%emt 0:00:19]} Qxc2 {[%emt 0:01:55]} 24. Rxc2 {[%emt 0:00:33]} Ra8 {[%emt 0:00:08]} 25. Nd2 {[%emt 0:07:43]} h6 {[%emt 0:01:23]} 26. Be3 {[%emt 0:01:03]} Nf6 {[%emt 0:06:07]} 27. Nc4 {[%emt 0:02:01]} Bf8 {[%emt 0:00:28]} 28. Rd1 {[%emt 0:03:18]} Ra6 {[%emt 0:01:14]} 29. f3 {[%emt 0:01:49]} g5 {[%emt 0:01:09]} 30. Kf2 {[%emt 0:02:52]} Bg7 {[%emt 0:00:37]} 31. h4 {[%emt 0:01:47]} gxh4 {[%emt 0:01:38]} 32. Rcd2 {[%emt 0:00:43]} Nh5 {[%emt 0:01:31]} 33. Rh1 {[%emt 0:02:10]} Bc3 {[%emt 0:01:47]} 34. Rc2 {[%emt 0:00:34]} Bf6 {[%emt 0:00:06]} 35. Bxh6 {[%emt 0:02:12]} Rba7 {[%emt 0:00:35]} 36. a4 {[%emt 0:01:40]} Rb7 {[%emt 0:00:09]} 37. Rb1 {[%emt 0:02:59]} Bd4+ {[%emt 0:07:21]} 38. Be3 {[%emt 0:01:12]} Ng3 {[%emt 0:06:02]} 39. Bxd4 {[%emt 0:01:26]} cxd4 {[%emt 0:00:06]} 40. Rbb2 {[%emt 0:00:00]} Kg7 {[%emt 0:00:00]} 41. Rd2 {[%emt 0:16:45]} Nf5 {[%emt 0:06:07]} 42. Ke2 {[%emt 0:00:26]} Ra8 {[%emt 0:03:56]} 43. Kd3 {[%emt 0:01:04]} Kf6 {[%emt 0:00:07]} 44. Rd1 {[%emt 0:02:53]} Rb4 {[%emt 0:04:04]} 45. Rdb1 {[%emt 0:04:11]} Kg5 {[%emt 0:02:12]} 46. Re1 {[%emt 0:04:01]} Rc8 {[%emt 0:02:56]} 47. Ree2 {[%emt 0:01:18]} Rcb8 {[%emt 0:05:04]} 48. Nd2 {[%emt 0:00:33]} Kg6 {[%emt 0:03:21]} 49. Rb1 {[%emt 0:03:35]} Ne3 {[%emt 0:03:13]} 50. Ne4 {[%emt 0:01:45]} Nxd5 {[%emt 0:01:01]} 51. Reb2 {[%emt 0:02:03]} Nf4+ {[%emt 0:00:43]} 52. Kd2 {[%emt 0:00:06]} Nxg2 {[%emt 0:03:00]} 53. Nxd6 {[%emt 0:02:24]} h3 {[%emt 0:02:23]} 54. Nc4 {[%emt 0:01:10]} Kf5 {[%emt 0:03:01]} 55. Rh1 {[%emt 0:01:16]} Rxc4 {[%emt 0:00:24]} 56. Rxh3 {[%emt 0:00:28]} Rxa4 {[%emt 0:02:08]} 57. Rh5+ {[%emt 0:00:34]} Kg6 {[%emt 0:00:41]} 58. Rd5 {[%emt 0:00:30]} Nf4 {[%emt 0:00:42]} 59. Rd6+ {[%emt 0:00:08]} Ne6 {[%emt 0:00:20]} 60. bxa4 {[%emt 0:00:33]} Rxb2+ {[%emt 0:00:06]} 61. Kd3 {[%emt 0:00:07]} Ra2 {[%emt 0:00:12]} 62. Ra6 {[%emt 0:00:33]} Kf5 {[%emt 0:00:18]} 63. Kc4 {[%emt 0:00:14]} Rc2+ {[%emt 0:00:23]} 64. Kb4 {[%emt 0:00:32]} Ke5 {[%emt 0:00:49]} 65. a5 {[%emt 0:00:15]} d3 {[%emt 0:00:53]} 66. Ra7 {[%emt 0:01:02]} d2 {[%emt 0:00:22]} 67. f4+ {[%emt 0:00:05]} Kd6 {[%emt 0:00:28]} 0-1

[Event "European Womens-ch 2025"]
[Site "Rhodes"]
[Date "2025.04.07"]
[Round "7.43"]
[White "Bochnickova, Andrea"]
[Black "Mamedjarova, Turkan"]
[Result "0-1"]
[Annotator "RC"]
[ECO "C45"]
[WhiteElo "2051"]
[BlackElo "2206"]
[PlyCount "68"]
[EventDate "2025.03.29"]
[EventType "swiss"]
[EventCountry "GRE"]
[SourceTitle "playchess.com"]
[Source "ChessBase"]
[SourceQuality "1"]
[TimeControl "40/5400+30:1800+30"]

1. e4 {[%emt 0:00:06]} e5 {[%emt 0:00:04]} 2. Nf3 {[%emt 0:00:10]} Nc6 {[%emt 0:00:19]} 3. d4 {[%emt 0:00:15]} exd4 {[%emt 0:00:06]} 4. Nxd4 {[%emt 0:00:05]} Bc5 {[%emt 0:00:04]} 5. Nb3 {[%emt 0:00:38]} Bb6 {[%emt 0:00:20]} 6. Nc3 {[%emt 0:00:12]} d6 {[%emt 0:00:33]} 7. Qe2 {[%emt 0:00:32]} Be6 {[%emt 0:03:12]} 8. Nd5 {[%emt 0:05:41]} h6 {[%emt 0:02:38]} 9. Bf4 {[%emt 0:01:36]} Nf6 {[%emt 0:04:24]} 10. O-O-O {[%emt 0:04:23]} O-O {[%emt 0:00:28]} 11. Nxb6 {[%emt 0:17:19]} axb6 {[%emt 0:01:18]} 12. Kb1 {[%emt 0:00:28]} Ra4 {[%emt 0:11:10]} 13. f3 {[%emt 0:06:07]} Qe7 {[%emt 0:05:50]} 14. Qe3 {[%emt 0:04:37]} d5 {[%emt 0:10:24]} 15. Bb5 {[%emt 0:09:18]} d4 {[%emt 0:06:46]} 16. Qf2 {[%emt 0:02:45]} Ra7 {[%emt 0:05:23]} 17. g4 {[%emt 0:04:26]} Rfa8 {[%emt 0:03:08]} 18. a4 {[%emt 0:04:10]} Bxb3 {[%emt 0:07:21]} 19. cxb3 {[%emt 0:00:13]} Qb4 {[%emt 0:00:08]} 20. Bxc7 {[%emt 0:03:56]} Qxb3 {[%emt 0:01:17]} 21. Rd3 {[%emt 0:05:15]} Qe6 {[%emt 0:04:33]} 22. b3 {[%emt 0:04:18]} Nd7 {[%emt 0:05:47]} 23. Bc4 {[%emt 0:04:56]} Qf6 {[%emt 0:05:46]} 24. Rhd1 {[%emt 0:03:07]} Rc8 {[%emt 0:07:08]} 25. Qg3 {[%emt 0:05:27]} Nce5 {[%emt 0:01:52]} 26. Bxe5 {[%emt 0:01:51]} Nxe5 {[%emt 0:00:20]} 27. Rxd4 {[%emt 0:00:50]} Nxc4 {[%emt 0:01:41]} 28. bxc4 {[%emt 0:01:41]} Rxa4 {[%emt 0:00:52]} 29. Qd6 {[%emt 0:01:18]} Qxf3 {[%emt 0:01:27]} 30. R1d3 {[%emt 0:00:26]} Qe2 {[%emt 0:01:07]} 31. Qxb6 {[%emt 0:02:36]} Qe1+ {[%emt 0:01:22]} 32. Rd1 {[%emt 0:00:27]} Rb4+ {[%emt 0:00:09]} 33. Kc2 {[%emt 0:00:18]} Qxd1+ {[%emt 0:00:20]} 34. Kxd1 {[%emt 0:00:08]} Rxb6 {[%emt 0:00:04]} 0-1

[Event "European Womens-ch 2025"]
[Site "Rhodes"]
[Date "2025.04.07"]
[Round "7.44"]
[White "Dwilewicz, Katarzyna"]
[Black "Rida, Ruqayyah"]
[Result "1-0"]
[Annotator "ChessBase"]
[ECO "C25"]
[WhiteElo "2203"]
[BlackElo "2065"]
[PlyCount "135"]
[EventDate "2025.03.29"]
[EventType "swiss"]
[EventCountry "GRE"]
[SourceTitle "playchess.com"]
[Source "ChessBase"]
[SourceQuality "1"]
[TimeControl "40/5400+30:1800+30"]

1. e4 {[%emt 0:00:05]} e5 {[%emt 0:00:14]} 2. Bc4 {[%emt 0:00:22]} Nc6 {[%emt 0:00:16]} 3. d3 {[%emt 0:01:00]} Bc5 {[%emt 0:01:38]} 4. Nc3 {[%emt 0:01:18]} d6 {[%emt 0:01:27]} 5. Na4 {[%emt 0:02:51]} Bb6 {[%emt 0:01:11]} 6. Nxb6 {[%emt 0:00:09]} axb6 {[%emt 0:00:06]} 7. a4 {[%emt 0:00:07]} Nf6 {[%emt 0:01:11]} 8. Ne2 {[%emt 0:00:16]} Be6 {[%emt 0:03:44]} 9. Bxe6 {[%emt 0:02:17]} fxe6 {[%emt 0:00:25]} 10. O-O {[%emt 0:00:11]} O-O {[%emt 0:00:37]} 11. c3 {[%emt 0:03:40]} Qe8 {[%emt 0:06:21]} 12. Ng3 {[%emt 0:05:00]} Ne7 {[%emt 0:09:10]} 13. f4 {[%emt 0:04:25]} exf4 {[%emt 0:13:32]} 14. Bxf4 {[%emt 0:00:17]} Qg6 {[%emt 0:06:10]} 15. Qe2 {[%emt 0:11:03]} Rae8 {[%emt 0:12:36]} 16. d4 {[%emt 0:03:35]} Nc6 {[%emt 0:01:17]} 17. Bd2 {[%emt 0:01:06]} h5 {[%emt 0:07:13]} 18. Rae1 {[%emt 0:06:59]} h4 {[%emt 0:05:17]} 19. Nh1 {[%emt 0:00:08]} d5 {[%emt 0:00:55]} 20. Nf2 {[%emt 0:18:37]} e5 {[%emt 0:11:11]} 21. dxe5 {[%emt 0:12:59]} Rxe5 {[%emt 0:00:59]} 22. Bf4 {[%emt 0:05:14]} Re7 {[%emt 0:04:01]} 23. e5 {[%emt 0:00:38]} Nh5 {[%emt 0:01:28]} 24. Nh3 {[%emt 0:02:16]} Rf5 {[%emt 0:06:09]} 25. Qd2 {[%emt 0:04:12]} Nxe5 {[%emt 0:01:39]} 26. Qxd5+ {[%emt 0:00:57]} Nf7 {[%emt 0:00:09]} 27. Qd3 {[%emt 0:06:00]} Rxe1 {[%emt 0:00:45]} 28. Rxe1 {[%emt 0:00:01]} Nxf4 {[%emt 0:01:05]} 29. Nxf4 {[%emt 0:00:20]} Qg4 {[%emt 0:02:08]} 30. Nd5 {[%emt 0:00:59]} Re5 {[%emt 0:01:34]} 31. Ne7+ {[%emt 0:03:02]} Kf8 {[%emt 0:00:50]} 32. Ng6+ {[%emt 0:00:16]} Qxg6 {[%emt 0:00:10]} 33. Qxg6 {[%emt 0:00:02]} Rxe1+ {[%emt 0:00:10]} 34. Kf2 {[%emt 0:00:01]} Re5 {[%emt 0:00:41]} 35. Qg4 {[%emt 0:01:05]} Nd6 {[%emt 0:00:48]} 36. Qxh4 {[%emt 0:01:23]} Ne4+ {[%emt 0:00:41]} 37. Kg1 {[%emt 0:00:35]} Nf6 {[%emt 0:00:14]} 38. Qh8+ {[%emt 0:02:24]} Ng8 {[%emt 0:00:21]} 39. Qh3 {[%emt 0:01:00]} Ne7 {[%emt 0:00:57]} 40. Qf3+ {[%emt 0:00:00]} Ke8 {[%emt 0:00:00]} 41. Qxb7 {[%emt 0:00:55]} Kd7 {[%emt 0:01:19]} 42. Qf3 {[%emt 0:03:15]} g5 {[%emt 0:02:40]} 43. h3 {[%emt 0:03:00]} Nd5 {[%emt 0:02:32]} 44. Qd3 {[%emt 0:03:15]} Ke6 {[%emt 0:05:35]} 45. Qg6+ {[%emt 0:01:46]} Nf6 {[%emt 0:00:18]} 46. b4 {[%emt 0:01:01]} Rd5 {[%emt 0:00:39]} 47. Kh2 {[%emt 0:01:51]} Re5 {[%emt 0:01:02]} 48. c4 {[%emt 0:04:01]} Rf5 {[%emt 0:01:13]} 49. Qg7 {[%emt 0:00:50]} Kd6 {[%emt 0:01:27]} 50. c5+ {[%emt 0:05:41]} bxc5 {[%emt 0:01:19]} 51. bxc5+ {[%emt 0:00:06]} Kc6 {[%emt 0:00:07]} 52. Qg6 {[%emt 0:00:57]} Rf4 {[%emt 0:00:19]} 53. Qxg5 {[%emt 0:00:21]} Nd5 {[%emt 0:00:07]} 54. Qh6+ {[%emt 0:02:20]} Kxc5 {[%emt 0:01:50]} 55. Qa6 {[%emt 0:00:20]} c6 {[%emt 0:00:39]} 56. Qa7+ {[%emt 0:00:39]} Kd6 {[%emt 0:01:11]} 57. Qb8+ {[%emt 0:00:36]} Kd7 {[%emt 0:00:11]} 58. Qb3 {[%emt 0:01:13]} Rb4 {[%emt 0:00:30]} 59. Qa3 {[%emt 0:01:08]} c5 {[%emt 0:00:26]} 60. a5 {[%emt 0:00:15]} Nc7 {[%emt 0:02:47]} 61. a6 {[%emt 0:00:55]} Kc8 {[%emt 0:00:21]} 62. a7 {[%emt 0:03:56]} Kb7 {[%emt 0:00:31]} 63. Qa5 {[%emt 0:00:24]} Rb2 {[%emt 0:00:16]} 64. Qxc7+ {[%emt 0:01:28]} Ka8 {[%emt 0:00:29]} 65. Qc8+ {[%emt 0:00:16]} Kxa7 {[%emt 0:00:05]} 66. Qxc5+ {[%emt 0:00:04]} Kb7 {[%emt 0:00:13]} 67. h4 {[%emt 0:00:18]} Kb8 {[%emt 0:00:16]} 68. Qe5+ {[%emt 0:00:07]} 1-0